fUSD/lending_fUSD_20240630
["ID","MTS","AMOUNT","RATE_DAILY","PERIOD"]
[330762432,1719760243005,-1349.53,0.00016235,3]
[330762434,1719760243014,-850.4013,0.00016336,3]
[330762436,1719760243023,-680.91,0.00016336,3]
[330762438,1719760243032,-200.0,0.0001634,2]
[330762440,1719760243042,-250.0,0.0001636,2]
[330762442,1719760243051,-386.2,0.00016438,2]
[330762444,1719760243060,-500.0,0.00016438,3]
[330762446,1719760243069,-500.0,0.00016438,3]
[330762448,1719760243078,-500.0,0.00016438,3]
[330762450,1719760243087,-500.0,0.00016438,3]
[330762452,1719760243096,-500.0,0.00016438,3]
[330762454,1719760243105,-500.0,0.00016438,3]
[330762456,1719760243114,-500.0,0.00016438,3]
[330762458,1719760243123,-500.0,0.00016438,3]
[330762460,1719760243133,-500.0,0.00016438,3]
[330762462,1719760243142,-500.0,0.00016438,3]
[330762464,1719760243151,-500.0,0.00016438,3]
[330762466,1719760243161,-500.0,0.00016438,3]
[330762467,1719760243171,-178.34802209,0.00016438,3]
[330762471,1719760243180,-157.48,0.00016438,2]
[330762475,1719760243190,-174.77,0.00016438,2]
[330762478,1719760243198,-247.39,0.00016438,2]
[330762481,1719760243207,-165.77,0.00016484,2]
[330762484,1719760243216,-1133.58035,0.0001653,2]
[330762487,1719760243226,-942.15496647,0.00016544,2]
[330762489,1719760243234,-4445.75266228,0.00016544,2]
[330762492,1719760243243,-8160.47056994,0.00016549,2]
[330762495,1719760243253,-1759.05412823,0.00016566,2]
[330762498,1719760243262,-167.22,0.00016702,2]
[330762500,1719760243272,-853.72,0.00016709,2]
[330762501,1719760243281,-418.84,0.00016709,2]
[330762503,1719760243291,-400.0,0.00016794,2]
[330762506,1719760243301,-528.0988798,0.00016808,2]
[330762508,1719760243311,-174.58,0.0001686,2]
[330762510,1719760243320,-159.92,0.00016904,2]
[330762512,1719760243329,-389.97499106,0.00016908,2]
[330762514,1719760243339,-1663.0,0.00016926,2]
[330762516,1719760243348,-5806.0,0.00016926,2]
[330762518,1719760243357,-5173.0,0.00016926,2]
[330762520,1719760243367,-291.0,0.00016926,2]
[330762522,1719760243376,-38209.0,0.00016926,2]
[330762524,1719760243385,-1198.0,0.00016926,2]
[330762526,1719760243395,-386.2,0.00017033,2]
[330762527,1719760243405,-3839.55830547,0.00017094,2]
[330762530,1719760243414,-574449.66546392,0.00017097,2]
[330762532,1719760243429,-610.0,0.00017097,2]
[330762534,1719760243440,-29452.50863061,0.00017097,2]
[330762537,1719760243451,-670.0,0.00017097,2]
[330762539,1719760243462,-8950.635,0.00017097,2]
[330762541,1719760243474,-3056.56956999,0.00017097,2]
[330762545,1719760243485,-928.35999989,0.00017097,2]
[330762549,1719760243499,-386.1472,0.00017097,2]
[330762552,1719760243510,-38399.82838232,0.00017097,2]
[330762555,1719760243533,-574.92905729,0.00017097,2]
[330762559,1719760243548,-4023.30826427,0.00017097,2]
[330762573,1719760243658,-500.0,0.00013714,3]
[330762575,1719760243668,-13.22955313,0.00017097,2]
[330762577,1719760243681,-2032.52733,0.00017097,2]
[330762579,1719760243693,-440.99237249,0.00017097,2]
[330762581,1719760243704,-768.99405784,0.00017097,2]
[330762589,1719760243768,-0.0104199,0.00017097,2]
[330762591,1719760243779,-589.49151376,0.00017097,2]
[330762597,1719760243820,-500.0,0.00013824,3]
[330762599,1719760243829,-721.24002,0.00017097,2]
[330762600,1719760243841,-400.09131853,0.00017097,2]
[330762601,1719760243852,-8539.29078826,0.00017097,2]
[330762656,1719760246544,-500.0,0.00013933,3]
[330762657,1719760246554,-500.0,0.00014043,3]
[330762658,1719760246565,-500.0,0.00014153,3]
[330762659,1719760246575,-151.0,0.00015796,2]
[330762660,1719760246585,-812.0,0.00017096,2]
[330762661,1719760246595,-8668.36187488,0.00017097,2]
[330762662,1719760246606,-2197.79675111,0.00017097,2]
[330762663,1719760246619,-354.72076362,0.00017097,2]
[330762664,1719760246632,-907.5,0.00017097,2]
[330762665,1719760246643,-12889.70002755,0.00017097,2]
[330762666,1719760246655,-250.10479714,0.00017097,2]
[330762667,1719760246667,-635.25,0.00017097,2]
[330762668,1719760246680,-12925.9755099,0.00017097,2]
[330762669,1719760246691,-918.75679,0.00017097,2]
[330762670,1719760246704,-1523.78274965,0.00017097,2]
[330762671,1719760246717,-7408.17467383,0.00017097,2]
[330762672,1719760246899,-1712.92149102,0.00017097,2]
[330762763,1719760314471,13.61852137,0.00011199,2]
[330762764,1719760314492,2370.27212702,0.00011199,2]
[330762766,1719760327018,5874.05168981,0.00011199,2]
[330762767,1719760327686,1755.67618317,0.00011199,2]
[330762768,1719760327722,17858.02451361,0.00011199,2]
[330762770,1719760355808,1252.34425535,0.00011199,2]
[330762771,1719760360197,1831.08932088,0.00011199,2]
[330762772,1719760375255,788.38872474,0.00011199,2]
[330762773,1719760377571,1798.73942601,0.00011199,2]
[330762774,1719760384369,717.57369311,0.00011199,2]
[330762775,1719760384573,1036.71880662,0.00011199,2]
[330762778,1719760398384,1013.16514783,0.00011199,2]
[330762781,1719760439828,475.10495739,0.00011199,2]
[330762782,1719760453807,395.21766446,0.00011199,2]
[330762783,1719760454688,206.07168017,0.00011199,2]
[330762784,1719760459430,628.37979832,0.00011199,2]
[330762785,1719760459464,450.0,0.00011199,2]
[330762786,1719760465842,155.000001,0.00011199,2]
[330762788,1719760467635,286.73394581,0.00011199,2]
[330762789,1719760475431,202.47730064,0.00011199,2]
[330762791,1719760490210,194.24643572,0.00011199,2]
[330762799,1719760731860,717.20984409,0.00011199,2]
[330762806,1719760817682,610.49692435,0.00011199,2]
[330762808,1719760829811,787.97043346,0.00011199,2]
[330762810,1719760900618,155.0,0.00011199,2]
[330762813,1719760990243,500.0,0.0002189,120]
[330762816,1719761011423,500.0,0.0002189,120]
[330762829,1719761366154,-2837.34,0.00012273,2]
[330762831,1719761432454,-300.0,0.00012272,2]
[330762832,1719761432465,-282.92504737,0.00012273,2]
[330762834,1719761432479,-10705.90437253,0.00012273,2]
[330762841,1719761432654,-10519.0546527,0.00012273,2]
[330762842,1719761432663,-412.61839352,0.00012273,2]
[330762843,1719761432673,-455.99,0.00012569,2]
[330762844,1719761432682,-839.92857098,0.00012572,2]
[330762846,1719761432692,-420.0,0.00013468,2]
[330762849,1719761432702,-212.2295,0.00013515,2]
[330762850,1719761432711,-2500.0,0.00013515,2]
[330762853,1719761432720,-2940.1145,0.00013515,2]
[330762854,1719761432730,-10150.2056948,0.00013615,2]
[330762855,1719761432742,-267.71596673,0.00013615,2]
[330762856,1719761432754,-11241.74603948,0.00013615,2]
[330762857,1719761432765,-718.42740746,0.00013615,2]
[330762858,1719761432776,-1137.0,0.00013615,2]
[330762859,1719761432788,-1536.04031669,0.00013615,2]
[330762860,1719761432800,-1324.76351156,0.00013615,2]
[330762861,1719761432811,-571.61940899,0.00013615,2]
[330762862,1719761432822,-909.67996557,0.00013615,2]
[330762863,1719761432859,-81412.35328872,0.00013615,2]
[330762865,1719761432869,-106.66089375,0.00013615,2]
[330762880,1719761438463,-345.0,0.00013515,2]
[330762883,1719761438684,-2155.0,0.00013515,2]
[330762884,1719761438694,-2355.81999998,0.00013615,2]
[330762885,1719761438706,-7305.547732,0.00013615,2]
[330762886,1719761438718,-256.54429343,0.00013615,2]
[330762887,1719761438730,-2594.64763549,0.00013615,2]
[330762888,1719761438742,-3646.45277639,0.00013615,2]
[330762889,1719761438754,-6360.89999999,0.00013615,2]
[330762890,1719761438766,-6195.0,0.00013615,2]
[330762892,1719761438923,-66018.5274146,0.00013615,2]
[330762894,1719761438935,-5159.89925437,0.00013615,2]
[330762900,1719761438985,-500.0,0.00013714,3]
[330762902,1719761438996,-2727.33256583,0.0001379,2]
[330762904,1719761439005,-565.2929799,0.00013799,2]
[330762906,1719761439015,-619.16,0.00013815,3]
[330762908,1719761439025,-500.0,0.00013824,3]
[330762910,1719761439035,-499.99,0.00013824,2]
[330762912,1719761439045,-227.04865744,0.00013899,2]
[330762913,1719761439055,-619.16,0.00013925,3]
[330762915,1719761439066,-367.13,0.00013933,3]
[330762917,1719761439076,-242.12454532,0.00013989,2]
[330762919,1719761439086,-491.61691634,0.00013989,2]
[330762921,1719761439096,-300.0,0.00013989,2]
[330762923,1719761439108,-300.23463177,0.00013989,2]
[330762925,1719761439120,-619.16,0.00014034,3]
[330762927,1719761439132,-218.29264111,0.00014099,2]
[330762929,1719761439142,-619.16,0.00014144,3]
[330762931,1719761439152,-816.55,0.00014243,2]
[330762933,1719761439162,-619.16,0.00014253,3]
[330762935,1719761439172,-2000.0,0.0001429,3]
[330762937,1719761439183,-365.08,0.00014315,2]
[330762939,1719761439193,-619.16,0.00014363,3]
[330762941,1719761439203,-155.0,0.00014393,2]
[330762943,1719761439213,-155.0,0.00014393,2]
[330762945,1719761439223,-931.24728093,0.00014416,2]
[330762947,1719761439232,-619.16,0.00014473,3]
[330762949,1719761439242,-250.0,0.00014474,2]
[330762951,1719761439253,-167.57,0.00014476,2]
[330762953,1719761439263,-240.0,0.00014485,2]
[330762955,1719761439272,-260.23706492,0.00014499,2]
[330762957,1719761439281,-205.92304571,0.00014499,2]
[330762959,1719761439291,-499.35,0.0001451,2]
[330762961,1719761439301,-500.0,0.00014515,3]
[330762963,1719761439310,-500.0,0.00014515,3]
[330762965,1719761439320,-150.0,0.00014516,2]
[330762967,1719761439329,-2415.0,0.00014516,2]
[330762969,1719761439339,-1304.0,0.00014516,2]
[330762971,1719761439349,-1986.0,0.00014516,2]
[330762973,1719761439358,-3204.0,0.00014516,2]
[330762975,1719761439368,-548.0,0.00014516,2]
[330762977,1719761439379,-1069.0,0.00014516,2]
[330762979,1719761439389,-360.0,0.00014516,2]
[330762981,1719761439399,-1657.0,0.00014516,2]
[330762983,1719761439408,-5806.0,0.00014516,2]
[330762985,1719761439418,-1830.0,0.00014516,2]
[330762987,1719761439427,-291.0,0.00014516,2]
[330762989,1719761439437,-1274.0,0.00014516,2]
[330762991,1719761439447,-5173.0,0.00014516,2]
[330762993,1719761439457,-226.68,0.00014523,2]
[330762995,1719761439468,-250.0,0.00014531,2]
[330762997,1719761439477,-619.16,0.00014582,3]
[330762999,1719761439487,-565.29297988,0.0001459,2]
[330763001,1719761439496,-2727.33256582,0.0001459,2]
[330763003,1719761439506,-23900.0,0.00014599,2]
[330763005,1719761439515,-500.0,0.00014625,3]
[330763007,1719761439525,-500.0,0.00014625,3]
[330763009,1719761439535,-619.16,0.00014692,3]
[330763011,1719761439545,-598.48,0.00014735,3]
[330763013,1719761439555,-500.0,0.00014735,3]
[330763015,1719761439564,-587.0,0.00014781,2]
[330763016,1719761439573,-619.16,0.00014801,3]
[330763018,1719761439582,-455.99,0.00014833,2]
[330763020,1719761439592,-500.0,0.00014844,3]
[330763022,1719761439601,-816.55,0.00014901,2]
[330763024,1719761439611,-619.16,0.00014911,3]
[330763026,1719761439621,-500.0,0.00014954,3]
[330763029,1719761439632,-184.44295548,0.00014999,4]
[330763031,1719761439641,-2451.01619613,0.00015,3]
[330763135,1719761440758,-589.56767004,0.00014516,2]
[330763137,1719761440771,-583.68376119,0.00014516,2]
[330763139,1719761440783,-24.74856877,0.00014516,2]
[330763141,1719761440793,-1839.98380387,0.00015,3]
[330763143,1719761440803,-619.16,0.00015021,3]
[330763145,1719761440812,-500.0,0.00015063,3]
[330763147,1719761440823,-619.16,0.0001513,3]
[330763149,1719761440832,-500.0,0.00015173,3]
[330763151,1719761440841,-619.16,0.0001524,3]
[330763153,1719761440851,-418.84,0.0001526,2]
[330763155,1719761440860,-500.0,0.00015279,3]
[330763157,1719761440870,-500.0,0.00015283,3]
[330763159,1719761440883,-619.16,0.00015349,3]
[330763161,1719761440893,-500.0,0.00015389,3]
[330763163,1719761440907,-500.0,0.00015392,3]
[330763165,1719761440917,-619.16,0.00015459,3]
[330763167,1719761440927,-672.24389053,0.0001547,2]
[330763172,1719761440989,-87.75610947,0.0001547,2]
[330763175,1719761441000,-628.72,0.00015498,3]
[330763176,1719761441010,-500.0,0.00015502,3]
[330763178,1719761441019,-931.24728092,0.00015557,2]
[330763181,1719761441029,-565.29297988,0.00015566,2]
[330763182,1719761441038,-2727.33256582,0.00015566,2]
[330763184,1719761441048,-619.16,0.00015569,3]
[330763186,1719761441058,-307.8,0.000156,2]
[330763188,1719761441067,-500.0,0.00015611,3]
[330763190,1719761441077,-619.16,0.00015678,3]
[330763192,1719761441086,-500.0,0.00015721,3]
[330763194,1719761441096,-619.16,0.00015788,3]
[330763197,1719761441108,-500.0,0.0001583,3]
[330763199,1719761441118,-165.77,0.00015831,2]
[330763201,1719761441128,-619.16,0.00015897,3]
[330763203,1719761441138,-500.0,0.0001594,3]
[330763205,1719761441148,-472.75163,0.00016,2]
[330763206,1719761441158,-967.91796541,0.00016,2]
[330763209,1719761441170,-30.38203459,0.00016,2]
[330763211,1719761441179,-619.16,0.00016007,3]
[330763213,1719761441189,-500.0,0.0001605,3]
[330763214,1719761441198,-365.08,0.00016104,2]
[330763216,1719761441208,-619.16,0.00016116,3]
[330763218,1719761441217,-500.0,0.00016159,3]
[330763220,1719761441226,-500.0,0.00016191,2]
[330763222,1719761441236,-823.0,0.00016222,2]
[330763224,1719761441245,-619.16,0.00016226,3]
[330763226,1719761441255,-500.0,0.00016269,3]
[330763228,1719761441265,-240.0,0.00016296,2]
[330763230,1719761441275,-619.37,0.00016336,3]
[330763232,1719761441284,-226.68,0.00016338,2]
[330763234,1719761441293,-275.51,0.00016378,3]
[330763236,1719761441303,-321.8,0.00016438,2]
[330763238,1719761441313,-2519.73904,0.00016438,2]
[330763240,1719761441324,-565.29297988,0.00016543,2]
[330763242,1719761441333,-2727.33256582,0.00016543,2]
[330763244,1719761441343,-931.24728092,0.00016697,2]
[330763246,1719761441352,-584.628004,0.00016755,2]
[330763248,1719761441361,-490.0,0.00017,2]
[330763250,1719761441370,-998.3,0.00017,2]
[330763252,1719761441380,-309.21512156,0.00017006,2]
[330763254,1719761441390,-321.8,0.00017033,2]
[330763256,1719761441400,-8873.9949048,0.00017085,2]
[330763258,1719761441409,-2575.1964756,0.00017085,2]
[330763260,1719761441418,-3887.0341223,0.00017085,2]
[330763262,1719761441428,-816.55,0.00017087,2]
[330763264,1719761441437,-816.55,0.00017087,2]
[330763266,1719761441447,-816.55,0.00017087,2]
[330763268,1719761441456,-455.99,0.00017097,2]
[330763270,1719761441466,-4484.83666645,0.00017097,2]
[330763272,1719761441477,-512.86496022,0.00017097,2]
[330763275,1719761441488,-2923.62999489,0.00017097,2]
[330763277,1719761441499,-507.65898413,0.00017097,2]
[330763279,1719761441511,-973.5701055,0.00017097,2]
[330763479,1719761443632,-443.4506406,0.00013515,2]
[330763482,1719761443644,-1221.4656552,0.00013515,2]
[330763484,1719761443656,-613.09825755,0.00013515,2]
[330763487,1719761443667,-371.88983172,0.00013515,2]
[330763489,1719761443678,-333.18053612,0.00013515,2]
[330763507,1719761443846,-374.72962927,0.00013515,2]
[330763510,1719761443859,-293.80853246,0.00013515,2]
[330763512,1719761443872,-113.96841708,0.00013515,2]
[330763514,1719761443881,-1614.56928439,0.00014516,2]
[330763516,1719761443893,-48.43071561,0.00014516,2]
[330763518,1719761443903,-371.44582363,0.00015283,2]
[330763520,1719761443918,-2826.20126348,0.00015283,2]
[330763522,1719761443929,-917.79,0.00015283,2]
[330763524,1719761443940,-833.87987711,0.00015283,2]
[330763527,1719761443954,-4005.8433175,0.00015283,2]
[330763530,1719761443975,-851.90336111,0.00015283,2]
[330763554,1719761444222,-5240.08156891,0.00015283,2]
[330763556,1719761444233,-264.67910129,0.00015283,2]
[330763558,1719761444244,-1279.97005618,0.00015283,2]
[330763662,1719761446989,-12283.30989288,0.00015283,2]
[330763696,1719761687938,18254.91537762,0.00011199,2]
[330763703,1719761806366,305.25433982,0.00011199,2]
[330763704,1719761811118,150.0,0.00011199,2]
[330763705,1719761811139,150.0,0.00011199,2]
[330763706,1719761811160,150.0,0.00011199,2]
[330763707,1719761811182,150.0,0.00011199,2]
[330763708,1719761811204,150.0,0.00011199,2]
[330763709,1719761811224,150.0,0.00011199,2]
[330763710,1719761811246,150.0,0.00011199,2]
[330763711,1719761811270,150.0,0.00011199,2]
[330763712,1719761811290,110.03108902,0.00011199,2]
[330763779,1719761884093,6221.87942226,0.00011199,2]
[330763781,1719761908387,500.0,0.0002189,120]
[330763786,1719761953726,500.0,0.0002189,120]
[330763797,1719761991005,500.0,0.0002189,120]
[330763846,1719762188076,1000.0,0.00021,120]
[330763854,1719762220645,150.0,0.00011199,2]
[330763855,1719762220668,5.0,0.00011199,2]
[330763856,1719762223067,150.0,0.00011199,2]
[330763857,1719762223091,117.98606596,0.00011199,2]
[330763862,1719762294288,150.0,0.00011199,2]
[330763863,1719762294312,150.0,0.00011199,2]
[330763864,1719762294339,150.0,0.00011199,2]
[330763865,1719762294362,150.0,0.00011199,2]
[330763866,1719762294383,150.0,0.00011199,2]
[330763867,1719762294406,150.0,0.00011199,2]
[330763870,1719762304271,500.0,0.0002189,120]
[330763878,1719762397309,150.0,0.00011199,2]
[330763879,1719762397331,150.0,0.00011199,2]
[330763880,1719762397351,191.89919189,0.00011199,2]
[330763883,1719762439117,85.28236121,0.00010709,2]
[330763884,1719762439146,368.60763879,0.00010709,2]
[330763886,1719762514619,380.09571427,0.00011199,2]
[330763887,1719762524329,242.03254915,0.00011199,2]
[330763888,1719762540719,227.04865744,0.00011199,2]
[330763899,1719762607466,11337.54233049,0.00011199,2]
[330763913,1719762631468,-644.0,0.00012172,2]
[330763915,1719762631478,-1751.6749,0.00012173,2]
[330763916,1719762631490,-155.0,0.00012302,2]
[330763917,1719762631499,-443.85598899,0.00012302,2]
[330763918,1719762631508,-175.96,0.00012518,2]
[330763919,1719762631520,-250.0,0.00012584,2]
[330763920,1719762631530,-18578.70938754,0.00012592,2]
[330763921,1719762631542,-5321.29061246,0.00012592,2]
[330763922,1719762631552,-219.04,0.00012649,2]
[330763923,1719762631561,-979.66938754,0.00012654,2]
[330763924,1719762631578,-247.01061246,0.00012654,2]
[330763925,1719762631588,-150.0,0.0001274,2]
[330763926,1719762631598,-4019.7,0.0001274,2]
[330763927,1719762631608,-1000.0,0.00012747,2]
[330763928,1719762631618,-1429.93,0.00012747,2]
[330763929,1719762631628,-250.0,0.00012765,2]
[330763930,1719762631638,-453.89,0.00012973,2]
[330763931,1719762631647,-1914.3511,0.00013372,2]
[330763932,1719762631657,-153.24,0.00013407,2]
[330763933,1719762631667,-17269.4566,0.00013415,2]
[330763934,1719762631677,-274.6897,0.00013415,2]
[330763935,1719762631688,-1252.7833,0.00013415,2]
[330763936,1719762631697,-5854.2673,0.00013415,2]
[330763937,1719762631707,-4291.7394,0.00013415,2]
[330763938,1719762631716,-2841.727,0.00013415,2]
[330763939,1719762631726,-698.4351,0.00013415,2]
[330763940,1719762631735,-35009.9324,0.00013415,2]
[330763941,1719762631745,-153.24,0.00013457,2]
[330763942,1719762631754,-533.28582048,0.00013472,2]
[330763943,1719762631764,-888.42211868,0.00013472,2]
[330763944,1719762631773,-153.24,0.00013507,2]
[330763945,1719762631783,-100000.0,0.00013515,2]
[330763946,1719762631793,-98352.4546,0.00013515,2]
[330763947,1719762631804,-2550.0931,0.00013515,2]
[330763948,1719762631814,-438.2805,0.00013515,2]
[330763949,1719762631823,-499.99,0.00013516,2]
[330763950,1719762631833,-153.24,0.00013557,2]
[330763951,1719762631843,-153.24,0.00013607,2]
[330763952,1719762631853,-153.24,0.00013657,2]
[330763953,1719762631864,-500.0,0.00013698,3]
[330763954,1719762631873,-851.02609563,0.00013698,2]
[330763955,1719762631884,-10000.0,0.00013699,2]
[330763956,1719762631893,-410.58,0.00013699,2]
[330763957,1719762631903,-153.24,0.00013707,2]
[330763958,1719762631912,-153.24,0.00013757,2]
[330763959,1719762631922,-1712.35729022,0.0001379,2]
[330763960,1719762631932,-339.175788,0.00013799,2]
[330763961,1719762631942,-153.24,0.00013807,2]
[330763962,1719762631952,-297.38,0.00013808,3]
[330763963,1719762631961,-200.0,0.00013835,2]
[330763964,1719762631971,-153.24,0.00013856,2]
[330763965,1719762631982,-176.81979758,0.00013906,2]
[330763966,1719762631991,-321.18543508,0.00013906,2]
[330763967,1719762632001,-153.24,0.00013906,2]
[330763968,1719762632010,-6386.10761836,0.00013916,2]
[330763969,1719762632021,-153.24,0.00013956,2]
[330763970,1719762632030,-2000.0,0.00013973,3]
[330763971,1719762632040,-3618.48969762,0.00013987,2]
[330763972,1719762632050,-156.75800946,0.0001399,2]
[330763973,1719762632060,-245399.66955062,0.00014,2]
[330763974,1719762632086,-366315.545998,0.00014,2]
[330763975,1719762632097,-1610.9642997,0.00014,2]
[330763976,1719762632111,-877.41,0.00014,2]
[330763977,1719762632134,-1135.31489135,0.00014,2]
[330763978,1719762632146,-551.29288503,0.00014,2]
[330763979,1719762632159,-3556.21712772,0.00014,2]
[330763980,1719762632175,-30312.120016,0.00014,2]
[330763981,1719762632188,-397731.65647951,0.00014,2]
[330763982,1719762632197,-153.24,0.00014006,2]
[330763983,1719762632208,-153.24,0.00014056,2]
[330763984,1719762632217,-153.24,0.00014106,2]
[330763985,1719762632226,-219.04,0.00014231,2]
[330763986,1719762632235,-1000.0,0.00014341,2]
[330763987,1719762632244,-1712.3572902,0.00014413,2]
[330763988,1719762632254,-339.17578792,0.00014413,2]
[330763989,1719762632263,-321.18543506,0.00014513,2]
[330763990,1719762632276,-6386.1076183,0.00014687,2]
[330763991,1719762632285,-150.27446,0.00014752,2]
[330763992,1719762632295,-1657.0,0.00014815,2]
[330763993,1719762632304,-1830.0,0.00014815,2]
[330763994,1719762632313,-1274.0,0.00014815,2]
[330763995,1719762632325,-360.0,0.00014815,2]
[330763996,1719762632334,-166.0,0.00014815,2]
[330763997,1719762632344,-618.0,0.00014815,2]
[330763998,1719762632355,-448.0,0.00014815,2]
[330763999,1719762632367,-443.0,0.00014815,2]
[330764000,1719762632379,-813.0,0.00014815,2]
[330764001,1719762632388,-150.0,0.00014815,2]
[330764002,1719762632398,-2415.0,0.00014815,2]
[330764003,1719762632408,-1304.0,0.00014815,2]
[330764004,1719762632418,-3204.0,0.00014815,2]
[330764005,1719762632427,-1986.0,0.00014815,2]
[330764006,1719762632437,-548.0,0.00014815,2]
[330764007,1719762632447,-5173.0,0.00014815,2]
[330764008,1719762632456,-38209.0,0.00014815,2]
[330764009,1719762632466,-1198.0,0.00014815,2]
[330764010,1719762632476,-1663.0,0.00014815,2]
[330764011,1719762632487,-5806.0,0.00014815,2]
[330764012,1719762632498,-291.0,0.00014815,2]
[330764013,1719762632508,-2031.57466037,0.00014899,2]
[330764014,1719762632519,-5000.0,0.00015,2]
[330764015,1719762632528,-3967.8675886,0.00015,2]
[330764016,1719762632538,-321.18543506,0.00015119,2]
[330764017,1719762632548,-170.5,0.00015231,2]
[330764018,1719762632558,-453.89,0.00015237,2]
[330764019,1719762632567,-1054.76250323,0.00015335,2]
[330764020,1719762632576,-1712.3572902,0.00015412,2]
[330764021,1719762632585,-339.17578792,0.00015412,2]
[330764022,1719762632595,-6386.1076183,0.00015459,2]
[330764023,1719762632608,-321.18543506,0.00015726,2]
[330764024,1719762632618,-219.04,0.00015812,2]
[330764025,1719762632627,-166.77,0.00015831,2]
[330764026,1719762632635,-155.0,0.00015832,2]
[330764027,1719762632645,-155.0,0.00015832,2]
[330764028,1719762632654,-1000.0,0.00015934,2]
[330764029,1719762632664,-150.0,0.00016,2]
[330764030,1719762632672,-1001.48,0.00016,2]
[330764031,1719762632682,-202.55338166,0.00016172,2]
[330764032,1719762632691,-647.26467047,0.00016172,2]
[330764033,1719762632700,-2099.78253,0.0001621,2]
[330764034,1719762632710,-6386.1076183,0.0001623,2]
[330764035,1719762632720,-831.0,0.00016298,2]
[330764036,1719762632729,-321.18543506,0.00016333,2]
[330764037,1719762632738,-202.21096049,0.00016378,2]
[330764038,1719762632747,-1712.3572902,0.0001641,2]
[330764039,1719762632756,-339.17578792,0.0001641,2]
[330764040,1719762632766,-268.2,0.00016438,2]
[330764041,1719762632775,-1759.05412823,0.00016566,2]
[330764042,1719762632784,-442.30623662,0.00016699,2]
[330764043,1719762632794,-2099.78254,0.0001673,2]
[330764044,1719762632804,-415.49090939,0.00016759,2]
[330764045,1719762632813,-150.0,0.00016926,2]
[330764046,1719762632822,-321.18543506,0.0001694,2]
[330764047,1719762632832,-500.0,0.0001696,2]
[330764048,1719762632841,-576.0,0.00017,2]
[330764049,1719762632851,-1001.48,0.00017,2]
[330764050,1719762632865,-6386.1076183,0.00017001,2]
[330764051,1719762632873,-462.0895,0.00017012,2]
[330764052,1719762632882,-268.2,0.00017033,2]
[330764053,1719762632891,-2052.7249679,0.00017085,2]
[330764054,1719762632903,-1400.9660025,0.00017085,2]
[330764055,1719762632912,-6995.89813,0.00017085,2]
[330764056,1719762632921,-223465.86290343,0.00017097,2]
[330764073,1719762637400,-12756.89533858,0.00016,3]
[330764075,1719762637411,-703.0,0.00016298,2]
[330764077,1719762637420,-13694.92826905,0.00017097,2]
[330764080,1719762637514,-1602.26575962,0.00017097,2]
[330764101,1719762637952,-400.94020217,0.00017097,2]
[330764103,1719762637964,-3148.63407682,0.00017097,2]
[330764105,1719762637976,-666.23816241,0.00017097,2]
[330764108,1719762637988,-300.0,0.00017097,2]
[330764242,1719762639501,-253.44497898,0.00014815,2]
[330764244,1719762639513,-345.91147168,0.00014815,2]
[330764266,1719762639731,-469.64354934,0.00014815,2]
[330764268,1719762639741,-27334.84390728,0.00017097,2]
[330764274,1719762639792,-336.21653358,0.00017097,2]
[330764281,1719762639851,-6971.10367794,0.00017097,2]
[330764283,1719762639864,-1757.22611303,0.00017097,2]
[330764288,1719762639908,-1672.86450244,0.00017097,2]
[330764555,1719762642530,-501.02048023,0.00017097,2]
[330764557,1719762642591,-2492.56313245,0.00017097,2]
[330764558,1719762642602,-1301.3,0.00017097,2]